fUST/lending_fUST_20250115
["ID","MTS","AMOUNT","RATE_DAILY","PERIOD"]
[348909110,1736871047914,-500.0,0.0002315,3]
[348909111,1736871047927,-2266.02,0.0002315,3]
[348909113,1736871047936,-500.0,0.0002315,3]
[348909116,1736871047948,-2655.27,0.0002315,3]
[348909118,1736871047959,-500.0,0.0002315,3]
[348909120,1736871047969,-500.0,0.0002315,3]
[348909122,1736871047979,-852.3,0.0002315,3]
[348909124,1736871047989,-1476.27,0.0002315,3]
[348909126,1736871048000,-757.95,0.0002315,2]
[348909128,1736871048010,-500.0,0.0002315,3]
[348909130,1736871048020,-500.0,0.0002315,3]
[348909132,1736871048030,-607.67,0.0002315,3]
[348909134,1736871048039,-502.2,0.0002315,3]
[348909136,1736871048048,-11264.12,0.0002315,3]
[348909138,1736871048058,-6252.25,0.0002315,2]
[348909140,1736871048067,-757.72,0.0002315,3]
[348909142,1736871048077,-530.8,0.0002315,3]
[348909144,1736871048087,-500.0,0.0002315,3]
[348909146,1736871048097,-500.0,0.0002315,3]
[348909148,1736871048108,-1348.98,0.0002315,3]
[348909150,1736871048118,-1517.43,0.0002315,3]
[348909152,1736871048128,-30201.28,0.0002315,3]
[348909154,1736871048138,-542.74,0.0002315,3]
[348909156,1736871048147,-500.0,0.0002315,3]
[348909158,1736871048157,-500.0,0.0002315,3]
[348909160,1736871048167,-500.0,0.0002315,3]
[348909162,1736871048177,-37.22561014,0.0002315,3]
[348909165,1736871048204,-1096.94438986,0.0002315,3]
[348909167,1736871048214,-883.47,0.0002315,3]
[348909169,1736871048223,-500.0,0.0002315,3]
[348909171,1736871048233,-500.0,0.0002315,3]
[348909173,1736871048242,-500.0,0.0002315,3]
[348909175,1736871048252,-592.82,0.0002315,3]
[348909177,1736871048264,-1217.31476424,0.0002317,2]
[348909179,1736871048277,-726.26927786,0.0002317,2]
[348909215,1736871048627,-46.14889912,0.00023,3]
[348909217,1736871048639,-423.3096757,0.00023,3]
[348913019,1736871240578,164.803146,0.00013973,2]
[348913056,1736872031148,-792.294,0.00019,2]
[348913057,1736872031171,-250.0,0.00019348,2]
[348913058,1736872031192,-193.830227,0.00019504,2]
[348913059,1736872031213,-4686.71552717,0.00019701,2]
[348913060,1736872031237,-300.0,0.00019899,2]
[348913061,1736872031258,-4229.17776111,0.00019899,2]
[348913136,1736872092732,176.562988,0.00013973,2]
[348913148,1736872100835,4596.551636,0.000125,2]
[348913149,1736872100872,245.13135393,0.000125,2]
[348913150,1736872100905,1940.87162892,0.000125,2]
[348913162,1736872112553,270.01574889,0.00014114,2]
[348913164,1736872114685,275.89037349,0.0001,2]
[348913170,1736872124424,566.32743533,0.000149,2]
[348913171,1736872124769,1000.0,0.0001,2]
[348913172,1736872148215,-3317.43861341,0.00016,2]
[348913176,1736872161098,-1652.91627678,0.000176,2]
[348913177,1736872167136,-381.61823082,0.000176,2]
[348913233,1736872232604,-502.74838053,0.000187,2]
[348913235,1736872232614,-892.12216559,0.000189,2]
[348913237,1736872232623,-4235.62669232,0.00019269,2]
[348913239,1736872232633,-4167.11482561,0.00019369,2]
[348913241,1736872232643,-300.0,0.00019762,2]
[348913243,1736872232654,-6003.16152918,0.00019762,2]
[348913246,1736872232666,-14012.00675584,0.00019762,2]
[348913254,1736872232734,-9700.09958981,0.00019762,2]
[348913259,1736872232775,-653.25905343,0.00019762,2]
[348913266,1736872232831,-20265.47307174,0.00019762,2]
[348913268,1736872232841,-1075.79071632,0.00019763,2]
[348913578,1736872238423,-193.830227,0.00018513,2]
[348913580,1736872238434,-6250.26167704,0.00019763,2]
[348913583,1736872238448,-184.95236754,0.00019763,2]
[348913585,1736872238460,-762.78723365,0.000199,2]
[348913587,1736872238472,-3648.04832848,0.000199,2]
[348913589,1736872238483,-433.0101436,0.00019999,2]
[348913592,1736872238494,-500.0,0.00019999,2]
[348913594,1736872238505,-568.18583237,0.00019999,2]
[348913596,1736872238516,-357.90726477,0.00019999,2]
[348913598,1736872238528,-235.05592436,0.00019999,2]
[348913600,1736872238539,-500.0,0.00019999,2]
[348913602,1736872238550,-500.0,0.00019999,2]
[348913605,1736872238561,-500.0,0.00019999,2]
[348913607,1736872238573,-315.0,0.00019999,2]
[348913609,1736872238585,-165.37468559,0.00019999,2]
[348913611,1736872238597,-500.0,0.00019999,2]
[348913614,1736872238610,-500.0,0.00019999,2]
[348913616,1736872238621,-500.0,0.00019999,2]
[348913618,1736872238632,-500.0,0.00019999,2]
[348913620,1736872238644,-500.0,0.00019999,2]
[348913623,1736872238655,-500.0,0.00019999,2]
[348913626,1736872238665,-500.0,0.00019999,2]
[348913629,1736872238675,-500.0,0.00019999,2]
[348913633,1736872238685,-500.0,0.00019999,2]
[348913635,1736872238694,-500.0,0.00019999,2]
[348913637,1736872238704,-500.0,0.00019999,2]
[348913640,1736872238714,-500.0,0.00019999,2]
[348913643,1736872238724,-500.0,0.00019999,2]
[348913646,1736872238735,-500.0,0.00019999,2]
[348913650,1736872238745,-363.27997658,0.00019999,2]
[348913652,1736872238756,-500.0,0.00019999,2]
[348913654,1736872238767,-500.0,0.00019999,2]
[348913656,1736872238778,-500.0,0.00019999,2]
[348913659,1736872238789,-500.0,0.00019999,2]
[348913661,1736872238801,-500.0,0.00019999,2]
[348913663,1736872238811,-413.40561673,0.00019999,2]
[348913666,1736872238826,-86.59438327,0.00019999,2]
[348913668,1736872238836,-500.0,0.00019999,2]
[348913670,1736872238846,-500.0,0.00019999,2]
[348913672,1736872238859,-500.0,0.00019999,2]
[348913674,1736872238872,-500.0,0.00019999,2]
[348913676,1736872238886,-500.0,0.00019999,2]
[348913679,1736872238896,-500.0,0.00019999,2]
[348913681,1736872238907,-500.0,0.00019999,2]
[348913683,1736872238917,-500.0,0.00019999,2]
[348913685,1736872238928,-500.0,0.00019999,2]
[348913687,1736872238938,-500.0,0.00019999,2]
[348913689,1736872238949,-500.0,0.00019999,2]
[348913691,1736872238959,-500.0,0.00019999,2]
[348913693,1736872238969,-500.0,0.00019999,2]
[348913696,1736872238980,-500.0,0.00019999,2]
[348913698,1736872238990,-500.0,0.00019999,2]
[348913700,1736872239000,-500.0,0.00019999,2]
[348913702,1736872239010,-500.0,0.00019999,2]
[348913704,1736872239019,-500.0,0.00019999,2]
[348913706,1736872239029,-500.0,0.00019999,2]
[348913708,1736872239040,-500.0,0.00019999,2]
[348913710,1736872239050,-500.0,0.00019999,2]
[348913712,1736872239061,-500.0,0.00019999,2]
[348913714,1736872239071,-500.0,0.00019999,2]
[348913716,1736872239081,-500.0,0.00019999,2]
[348913719,1736872239092,-500.0,0.00019999,2]
[348913721,1736872239103,-500.0,0.00019999,2]
[348913723,1736872239113,-500.0,0.00019999,2]
[348913725,1736872239123,-500.0,0.00019999,2]
[348913727,1736872239134,-500.0,0.00019999,2]
[348913729,1736872239144,-500.0,0.00019999,2]
[348913731,1736872239156,-500.0,0.00019999,2]
[348913733,1736872239166,-500.0,0.00019999,2]
[348913735,1736872239176,-500.0,0.00019999,2]
[348913738,1736872239187,-500.0,0.00019999,2]
[348913740,1736872239197,-500.0,0.00019999,2]
[348913742,1736872239208,-500.0,0.00019999,2]
[348913744,1736872239218,-449.46639933,0.00019999,2]
[348913746,1736872239229,-208.25932194,0.00019999,2]
[348913748,1736872239239,-230.61427907,0.00019999,2]
[348913751,1736872239251,-500.0,0.00019999,2]
[348913753,1736872239262,-500.0,0.00019999,2]
[348913755,1736872239272,-500.0,0.00019999,2]
[348913757,1736872239283,-500.0,0.00019999,2]
[348913759,1736872239297,-500.0,0.00019999,2]
[348913761,1736872239308,-500.0,0.00019999,2]
[348913763,1736872239319,-500.0,0.00019999,2]
[348913766,1736872239331,-500.0,0.00019999,2]
[348913768,1736872239341,-500.0,0.00019999,2]
[348913770,1736872239352,-500.0,0.00019999,2]
[348913772,1736872239362,-500.0,0.00019999,2]
[348913774,1736872239373,-500.0,0.00019999,2]
[348913776,1736872239383,-500.0,0.00019999,2]
[348913779,1736872239395,-500.0,0.00019999,2]
[348913781,1736872239405,-500.0,0.00019999,2]
[348913783,1736872239415,-500.0,0.00019999,2]
[348913785,1736872239425,-500.0,0.00019999,2]
[348913787,1736872239435,-500.0,0.00019999,2]
[348913789,1736872239446,-500.0,0.00019999,2]
[348913791,1736872239456,-500.0,0.00019999,2]
[348913793,1736872239466,-500.0,0.00019999,2]
[348913796,1736872239477,-500.0,0.00019999,2]
[348913798,1736872239487,-500.0,0.00019999,2]
[348913800,1736872239497,-500.0,0.00019999,2]
[348913802,1736872239508,-500.0,0.00019999,2]
[348913804,1736872239519,-500.0,0.00019999,2]
[348913806,1736872239528,-500.0,0.00019999,2]
[348913808,1736872239539,-500.0,0.00019999,2]
[348913830,1736872239729,-500.0,0.00019999,2]
[348913832,1736872239746,-500.0,0.00019999,2]
[348913834,1736872239756,-3475.69329648,0.0002,5]
[348913837,1736872239768,-252.15239808,0.0002,5]
[348913839,1736872239780,-21727.91892294,0.0002,5]
[348913904,1736872240362,-779.71704866,0.0002,5]
[348913906,1736872240374,-637.91685716,0.0002,5]
[348913913,1736872240663,-500.0,0.00019999,2]
[348913915,1736872240673,-328508.64707861,0.0002,5]
[348913917,1736872240683,-504.19968918,0.00020141,2]
[348914038,1736872243585,-5000.0,0.00019799,2]
[348914040,1736872243595,-3369.10673572,0.00020141,2]
[348914042,1736872243605,-1421.0452638,0.00020302,2]
[348914044,1736872243614,-474.340877,0.00020313,2]
[348914046,1736872243623,-176.562988,0.00020447,2]
[348914048,1736872243632,-241.3983294,0.00020525,2]
[348914050,1736872243642,-500.0,0.00020525,2]
[348914052,1736872243651,-300.30686034,0.00020525,2]
[348914054,1736872243661,-151.57859301,0.00020525,2]
[348914056,1736872243670,-151.0,0.00020668,2]
[348914058,1736872243680,-177.063,0.0002068,2]
[348914060,1736872243689,-4000.70615788,0.0002068,2]
[348914063,1736872243701,-10152.6296,0.0002068,2]
[348914066,1736872243712,-6647.9524,0.0002068,2]
[348914068,1736872243724,-1155.0000002,0.0002068,2]
[348918525,1736873029418,199.003595,0.00013973,2]
[348918530,1736873230144,-711.541442,0.00017155,2]
[348918531,1736873230165,-4090.41132071,0.00017231,2]
[348918542,1736873345107,-193.830227,0.00016276,2]
[348918543,1736873345128,-5654.2410581,0.00017163,2]
[348918544,1736873345151,-909.58867929,0.00017231,2]
[348918548,1736873352371,-785.4134831,0.00017554,2]
[348918549,1736873352394,-250.0,0.00017621,2]
[348918550,1736873352414,-270.6858273,0.00017621,2]
[348918551,1736873352438,-300.0,0.00017937,2]
[348918552,1736873352461,-10590.14053174,0.00017937,2]
[348918623,1736873432975,-300.0,0.00017936,2]
[348918644,1736873432984,-3388.1546518,0.00017936,2]
[348918647,1736873433192,-11615.8453482,0.00017936,2]
[348918649,1736873433202,-2334.6798884,0.00017938,2]
[348918651,1736873433213,-4051.82840443,0.00018261,2]
[348918653,1736873433223,-883.36977449,0.00018589,2]
[348918655,1736873433232,-4751.95125264,0.000186,2]
[348918657,1736873433242,-152.59,0.000186,2]
[348918659,1736873433251,-301.59446307,0.00018828,2]
[348918661,1736873433262,-22859.0616257,0.0001884,2]
[348918663,1736873433272,-594.74811039,0.000189,2]
[348918665,1736873433282,-5000.0,0.00018904,7]
[348918667,1736873433291,-1999.99,0.00018904,2]
[348918668,1736873433300,-196.65861289,0.00019169,2]
[348918670,1736873433310,-173.340316,0.00019178,2]
[348918672,1736873433319,-192.474,0.00019423,2]
[348918674,1736873433328,-155.257,0.00019423,2]
[348918675,1736873433338,-420.0,0.00019571,2]
[348918677,1736873433348,-373.6340715,0.00019761,7]
[348918679,1736873433358,-150.0,0.00019875,2]
[348918681,1736873433368,-166.35455972,0.000199,2]
[348918683,1736873433377,-211.95322334,0.000199,2]
[348918684,1736873433386,-211.9532233,0.000199,2]
[348918686,1736873433396,-500.0,0.00019944,2]
[348918688,1736873433405,-500.0,0.00019944,2]
[348918690,1736873433415,-500.0,0.00019944,2]
[348918692,1736873433424,-500.0,0.00019944,2]
[348918693,1736873433433,-500.0,0.00019944,2]
[348918695,1736873433442,-500.0,0.00019944,2]
[348918697,1736873433452,-500.0,0.00019944,2]
[348918699,1736873433461,-500.0,0.00019944,2]
[348918701,1736873433470,-500.0,0.00019944,2]
[348918703,1736873433479,-500.0,0.00019944,2]
[348918705,1736873433489,-500.0,0.00019944,2]
[348918706,1736873433499,-500.0,0.00019944,2]
[348918708,1736873433508,-500.0,0.00019944,2]
[348918710,1736873433517,-8512.08325564,0.00019947,2]
[348918712,1736873433526,-500.0,0.00019973,2]
[348918714,1736873433536,-500.0,0.00019973,2]
[348918715,1736873433547,-265.39817454,0.00019973,2]
[348918717,1736873433558,-151.22502121,0.00019973,2]
[348918719,1736873433567,-271.86982309,0.00019973,2]
[348918721,1736873433576,-400.68341451,0.00019973,2]
[348918723,1736873433586,-169.0,0.00019973,2]
[348918724,1736873433596,-467.07027274,0.00019973,2]
[348918726,1736873433605,-500.0,0.00019973,2]
[348918728,1736873433614,-500.0,0.00019973,2]
[348918730,1736873433624,-500.0,0.00019973,2]
[348918731,1736873433633,-463.20109519,0.00019994,2]
[348918733,1736873433642,-9795.0,0.0002,2]
[348918735,1736873433652,-88362.39881284,0.0002,4]
[348918737,1736873433661,-160.0,0.0002,2]
[348918739,1736873433671,-500.0,0.00020164,2]
[348918740,1736873433680,-525.25425987,0.00020169,2]
[348918742,1736873433690,-8933.36451414,0.0002017,2]
[348918744,1736873433702,-8933.36451414,0.00020305,2]
[348918746,1736873433711,-199.003595,0.00020447,2]
[348918748,1736873433722,-196.532217,0.00020521,2]
[348918750,1736873433731,-1000.0,0.00020521,2]
[348918751,1736873433742,-1000.0,0.00020521,2]
[348918753,1736873433752,-1003.88354482,0.00020521,2]
[348918755,1736873433762,-211.9532233,0.00020567,2]
[348918757,1736873433775,-196.532217,0.00020603,2]
[348918758,1736873433785,-196.532217,0.00020685,2]
[348918760,1736873433795,-196.532217,0.00020767,2]
[348918762,1736873433805,-196.532217,0.00020849,2]
[348918764,1736873433814,-166.35455972,0.00020927,2]
[348918766,1736873433824,-196.532217,0.00020932,2]
[348918768,1736873433834,-2475.91155158,0.00021,2]
[348918770,1736873433843,-371.55840712,0.00021,2]
[348918772,1736873433857,-1667.26902036,0.00021,2]
[348918778,1736873433924,-500.0,0.00019944,2]
[348918780,1736873433934,-192.89693223,0.00019944,2]
[348918782,1736873433944,-500.0,0.00019944,2]
[348918784,1736873433953,-500.0,0.00019944,2]
[348918785,1736873433963,-339.79954344,0.00019944,2]
[348918788,1736873433976,-160.20045656,0.00019944,2]
[348918790,1736873433987,-500.0,0.00019944,2]
[348918792,1736873434006,-500.0,0.00019944,2]
[348918794,1736873434019,-500.0,0.00019944,2]
[348918796,1736873434029,-500.0,0.00019944,2]
[348918798,1736873434039,-632.02566832,0.00019944,2]
[348918800,1736873434050,-500.0,0.00019944,2]
[348918802,1736873434063,-15013.03448184,0.00021,2]
[348918804,1736873434073,-242.65080158,0.00021,2]
[348918806,1736873434083,-196.532217,0.00021014,2]
[348918808,1736873434093,-196.532217,0.00021096,2]
[348918809,1736873434104,-249.93635299,0.00021139,2]
[348918811,1736873434114,-587.0,0.00021356,2]
[348918813,1736873434124,-211.9532233,0.000214,2]
[348918815,1736873434134,-285.04999898,0.000215,2]
[348918817,1736873434145,-1500.0,0.00021522,2]
[348918819,1736873434155,-17149.05369742,0.00021817,3]
[348918821,1736873434165,-88012.37751168,0.00021917,5]
[348918830,1736873434264,-500.0,0.00019944,2]
[348918832,1736873434274,-451.40894554,0.00019944,2]
[348919197,1736873438603,-48.59105446,0.00019944,2]
[348919199,1736873438613,-500.0,0.00019944,2]
[348919201,1736873438622,-500.0,0.00019944,2]
[348919203,1736873438632,-500.0,0.00019944,2]
[348919205,1736873438642,-500.0,0.00019944,2]
[348919207,1736873438651,-21.40894554,0.00019944,2]
[348919209,1736873438664,-478.59105446,0.00019944,2]
[348919211,1736873438674,-500.0,0.00019944,2]
[348919213,1736873438684,-500.0,0.00019944,2]
[348919215,1736873438695,-471.4224947,0.00019944,2]
[348919217,1736873438706,-500.0,0.00019944,2]
[348919219,1736873438716,-500.0,0.00019944,2]
[348919221,1736873438725,-500.0,0.00019944,2]
[348919223,1736873438735,-500.0,0.00019944,2]
[348919225,1736873438745,-300.0,0.00019944,2]
[348919227,1736873438754,-500.0,0.00019944,2]
[348919229,1736873438765,-500.0,0.00019944,2]
[348919231,1736873438776,-500.0,0.00019944,2]
[348919233,1736873438786,-575.0,0.00019944,2]
[348919234,1736873438796,-500.0,0.00019944,2]
[348919237,1736873438806,-500.0,0.00019944,2]
[348919239,1736873438815,-601.86367536,0.00019944,2]
[348919240,1736873438825,-500.0,0.00019944,2]
[348919242,1736873438834,-423.06142791,0.00019944,2]
[348919244,1736873438843,-500.0,0.00019944,2]
[348919246,1736873438853,-500.0,0.00019944,2]
[348919248,1736873438863,-85.91664263,0.00019944,2]
[348919249,1736873438875,-414.08335737,0.00019944,2]
[348919251,1736873438885,-500.0,0.00019944,2]
[348919253,1736873438894,-500.0,0.00019944,2]
[348919255,1736873438904,-500.0,0.00019944,2]
[348919257,1736873438913,-500.0,0.00019944,2]
[348919259,1736873438923,-500.0,0.00019944,2]
[348919260,1736873438932,-500.0,0.00019944,2]
[348919261,1736873438942,-500.0,0.00019944,2]
[348919262,1736873438952,-500.0,0.00019944,2]
[348919263,1736873438961,-500.0,0.00019944,2]
[348919264,1736873438971,-500.0,0.00019944,2]
[348919265,1736873438982,-500.0,0.00019944,2]
[348919266,1736873438992,-500.0,0.00019944,2]
[348919267,1736873439001,-500.0,0.00019944,2]
[348919268,1736873439013,-500.0,0.00019944,2]
[348919269,1736873439023,-500.0,0.00019944,2]
[348919270,1736873439033,-500.0,0.00019944,2]
[348919271,1736873439043,-500.0,0.00019944,2]
[348919272,1736873439053,-500.0,0.00019944,2]
[348919273,1736873439062,-204.90740899,0.00019944,2]
[348919359,1736873440918,-295.09259101,0.00019944,2]
[348919361,1736873440928,-500.0,0.00019944,2]
[348919363,1736873440938,-500.0,0.00019944,2]
[348919365,1736873440948,-500.0,0.00019944,2]
[348919367,1736873440957,-500.0,0.00019944,2]
[348919368,1736873440967,-500.0,0.00019944,2]
[348919370,1736873440976,-500.0,0.00019944,2]
[348919373,1736873440986,-500.0,0.00019944,2]
[348919375,1736873440996,-500.0,0.00019944,2]
[348919377,1736873441006,-500.0,0.00019944,2]
[348919379,1736873441015,-500.0,0.00019944,2]
[348919381,1736873441026,-91341.79247603,0.00021917,5]
[348919383,1736873441036,-16058.05456321,0.00021917,5]
[348919385,1736873441046,-152.59,0.00021917,2]
[348919387,1736873441056,-500.0,0.00021917,3]
[348919389,1736873441066,-500.0,0.00021917,3]
[348919391,1736873441076,-297.98130536,0.00021917,3]
[348919393,1736873441086,-500.0,0.00021917,3]
[348919395,1736873441095,-502.62323616,0.00021917,3]
[348919397,1736873441104,-500.0,0.00021917,3]
[348919399,1736873441114,-500.0,0.00021917,3]
[348919401,1736873441123,-500.0,0.00021917,3]
[348919403,1736873441133,-500.0,0.00021917,3]
[348919405,1736873441143,-500.0,0.00021917,3]
[348919407,1736873441152,-500.0,0.00021917,3]
[348919409,1736873441161,-500.0,0.00021917,3]
[348919411,1736873441170,-500.0,0.00021917,3]
[348919413,1736873441180,-502.57867064,0.00021917,3]
[348919415,1736873441190,-503.27942746,0.00021917,3]
[348919417,1736873441200,-500.0,0.00021917,3]
[348919419,1736873441209,-500.0,0.00021917,3]
[348919421,1736873441218,-481.49126444,0.00021917,3]
[348919423,1736873441227,-500.0,0.00021917,3]
[348919425,1736873441237,-500.0,0.00021917,3]
[348919427,1736873441247,-500.0,0.00021917,3]
[348919429,1736873441256,-500.0,0.00021917,3]
[348919430,1736873441265,-168.35461262,0.00021917,3]
[348919433,1736873441275,-500.0,0.00021917,3]
[348919435,1736873441286,-500.0,0.00021917,3]
[348919437,1736873441296,-503.26640427,0.00021917,3]
[348919439,1736873441306,-500.0,0.00021917,3]
[348919441,1736873441315,-500.0,0.00021917,3]
[348919443,1736873441324,-500.76880027,0.00021917,3]
[348919445,1736873441334,-500.0,0.00021917,3]
[348919447,1736873441343,-547.95570331,0.00021917,3]
[348919449,1736873441353,-500.0,0.00021917,3]
[348919451,1736873441364,-500.0,0.00021917,3]
[348919466,1736873441507,-503.25745211,0.00021917,3]
[348919468,1736873441520,-500.0,0.00021917,3]
[348919470,1736873441530,-500.0,0.00021917,3]
[348919472,1736873441539,-525.81625921,0.00021917,3]
[348919473,1736873441549,-500.0,0.00021917,3]
[348919474,1736873441559,-500.0,0.00021917,3]
[348919475,1736873441568,-503.41544306,0.00021917,3]
[348919476,1736873441578,-500.0,0.00021917,3]
[348919478,1736873441588,-500.0,0.00021917,3]
[348919480,1736873441598,-500.0,0.00021917,3]
[348919482,1736873441608,-500.0,0.00021917,3]
[348919484,1736873441617,-500.0,0.00021917,3]
[348919486,1736873441626,-500.0,0.00021917,3]
[348919488,1736873441636,-500.0,0.00021917,3]
[348919490,1736873441645,-500.0,0.00021917,3]
[348919492,1736873441655,-500.0,0.00021917,3]
[348919494,1736873441664,-500.0,0.00021917,3]
[348919496,1736873441673,-286.81310051,0.00021917,3]
[348919498,1736873441683,-500.0,0.00021917,3]
[348919500,1736873441694,-500.0,0.00021917,3]
[348919502,1736873441707,-505.13716165,0.00021917,3]
[348919504,1736873441716,-500.0,0.00021917,3]
[348919506,1736873441725,-500.0,0.00021917,3]
[348919508,1736873441736,-500.0,0.00021917,3]
[348919510,1736873441745,-500.0,0.00021917,3]
[348919512,1736873441755,-500.0,0.00021917,3]
[348919514,1736873441764,-500.0,0.00021917,3]
[348919516,1736873441775,-500.0,0.00021917,3]
[348919518,1736873441785,-326.79853314,0.00021917,3]
[348919520,1736873441794,-500.0,0.00021917,3]
[348919522,1736873441803,-500.0,0.00021917,3]
[348919524,1736873441813,-500.0,0.00021917,3]
[348919526,1736873441823,-500.0,0.00021917,3]
[348919528,1736873441832,-500.0,0.00021917,3]
[348919530,1736873441842,-500.0,0.00021917,3]
[348919532,1736873441851,-500.0,0.00021917,3]
[348919534,1736873441862,-500.0,0.00021917,3]
[348919536,1736873441872,-500.0,0.00021917,3]
[348919538,1736873441881,-500.0,0.00021917,3]
[348919540,1736873441891,-500.0,0.00021917,3]
[348919542,1736873441900,-500.0,0.00021917,3]
[348919544,1736873441910,-500.0,0.00021917,3]
[348919546,1736873441919,-500.0,0.00021917,3]
[348919548,1736873441929,-500.0,0.00021917,3]
[348919550,1736873441939,-500.0,0.00021917,3]
[348919552,1736873441949,-500.0,0.00021917,3]
[348919554,1736873441958,-500.0,0.00021917,3]
[348919555,1736873441968,-500.0,0.00021917,3]
[348919557,1736873441978,-639.01724044,0.00021917,3]
[348919559,1736873441987,-500.0,0.00021917,3]
[348919561,1736873441997,-500.0,0.00021917,3]
[348919563,1736873442008,-500.0,0.00021917,3]
[348919565,1736873442018,-500.0,0.00021917,3]
[348919567,1736873442028,-500.0,0.00021917,3]
[348919569,1736873442037,-500.0,0.00021917,3]
[348919571,1736873442047,-504.03107627,0.00021917,3]
[348919573,1736873442057,-501.76469795,0.00021917,3]
[348919575,1736873442066,-500.0,0.00021917,3]
[348919577,1736873442075,-500.0,0.00021917,3]
[348919579,1736873442084,-500.0,0.00021917,3]
[348919581,1736873442094,-500.0,0.00021917,3]
[348919583,1736873442103,-500.0,0.00021917,3]
[348919585,1736873442114,-500.0,0.00021917,3]
[348919587,1736873442123,-500.0,0.00021917,3]
[348919589,1736873442133,-500.0,0.00021917,3]
[348919591,1736873442142,-500.0,0.00021917,3]
[348919593,1736873442152,-701.28,0.00021917,3]
[348919595,1736873442162,-500.0,0.00021917,3]
[348919598,1736873442171,-500.0,0.00021917,3]
[348919600,1736873442181,-500.0,0.00021917,3]
[348919602,1736873442191,-500.0,0.00021917,3]
[348919604,1736873442200,-500.0,0.00021917,3]
[348919606,1736873442209,-500.0,0.00021917,3]
[348919608,1736873442219,-502.35920927,0.00021917,3]
[348919610,1736873442228,-500.0,0.00021917,3]
[348919611,1736873442238,-500.0,0.00021917,2]
[348919613,1736873442247,-500.0,0.00021917,3]
[348919616,1736873442257,-3504.14,0.00021917,3]
[348919618,1736873442267,-500.0,0.00021917,3]
[348919619,1736873442276,-504.29554481,0.00021917,3]
[348919622,1736873442286,-500.66026076,0.00021917,3]
[348919624,1736873442295,-500.0,0.00021917,3]
[348919626,1736873442305,-502.19352836,0.00021917,3]
[348919628,1736873442314,-500.0,0.00021917,3]
[348919630,1736873442323,-500.0,0.00021917,3]
[348919632,1736873442333,-188.0,0.00021917,2]
[348919634,1736873442343,-502.10553831,0.00021917,3]
[348919636,1736873442352,-500.0,0.00021917,3]
[348919638,1736873442362,-500.0,0.00021917,3]
[348919640,1736873442372,-500.0,0.00021917,3]
[348919642,1736873442382,-500.0,0.00021917,3]
[348919644,1736873442391,-500.0,0.00021917,3]
[348919646,1736873442400,-500.0,0.00021917,3]
[348919648,1736873442410,-500.0,0.00021917,3]
[348919650,1736873442419,-500.0,0.00021917,3]
[348919652,1736873442428,-500.0,0.00021917,3]
[348919654,1736873442438,-500.0,0.00021917,3]
[348919656,1736873442448,-508.0536812,0.00021917,3]
[348919658,1736873442457,-500.0,0.00021917,3]
[348919660,1736873442467,-500.0,0.00021917,3]
[348919662,1736873442476,-2170.42,0.00021917,3]
[348919664,1736873442485,-2170.42,0.00021917,3]
[348919666,1736873442495,-2170.42,0.00021917,3]
[348919668,1736873442504,-2170.42,0.00021917,3]